{"text_format":"3","workbook":"xlsx","n_sheets":1,"sheets":["Sheet2"],"not_rendered":{"images":6,"defined_names":1},"read":"whole","date_system":"1900"}

{"sheet":"Sheet2","index":0,"n_rows":46,"n_cols":10,"rows_kept":46,"merged":[[0,0,0,9],[1,0,2,0],[1,1,2,1],[1,2,2,2],[1,3,2,3],[1,4,2,4],[1,5,1,8],[44,0,44,5],[45,0,45,9]]}
["2025年“E”项目钢构及格栅制安工程量清单及报价表"]
["序号","项目名称","项目特征","计量\n单位","工程量","金额（元）"]
["","",null,"","","全费用单价限价","合价","班组所报单价","合价","备注"]
["一","廊架"]
[1.1,"预埋柱脚铁件","1.铁件材质：底板、加劲板Q355B；\n2.底板规格：450×450×20mm；\n3.锚栓要求：M20锚栓带螺纹、带弯钩，锚栓垫板为60×60×16mm，双螺母及调平螺母，深入基础600mm；\n4.包含：包含主材费、辅材费、制作安装、基础及预埋件施工、成品保护及材料到场后的二次转运、检测等该工序所需的所有费用。","t",{"v":0.548,"d":"0.55"},{"v":8500,"d":"8500.00"},{"$f":"F5*E5","v":{"v":4658,"d":"4658.00"}}]
[1.2,"镀锌矩管格栅墙（弧形）","1.墙面矩管要求：30×30×2.5mm，间距30mm，上下错位；\n2.上下横管要求：30×30×2.5mm或自行深化设计考虑；\n3.固定方式：焊接牢固，衬管及加固件自行综合考虑；\n4.面饰要求：咖啡色氟碳漆，遍数自行深化考虑；\n5.包含：主材费、辅材费、半成品制作安装、成品制作安装、喷漆保护、成品保护及材料到场后的二次转运、检测、深化设计费等该工序所需的所有费用。\n6.计量方式：矩管形成外接矩形面积计量，不扣除内空矩管面积。","m2",{"v":81,"d":"81.00"},{"v":380,"d":"380.00"},{"$f":"F6*E6","v":{"v":30780,"d":"30780.00"}}]
[1.3,"2mm厚镀锌钢板（含氟碳漆）造型包梁","1.镀锌钢板厚度：2mm；\n2.面层：除锈后进行氟碳漆喷涂，包含除锈漆一般，氟碳漆底漆、面漆各两遍；\n3.固定方式：焊接牢固，衬管及加固件自行综合考虑，缝口处打磨处理；\n4.包含：主材费、辅材费、半成品制作安装、成品制作安装、喷漆保护、成品保护及材料到场后的二次转运、检测、深化设计费等该工序所需的所有费用。","m2",{"$f":"49+58.3","v":{"v":107.3,"d":"107.30"}},{"v":240,"d":"240.00"},{"v":25752,"d":"25752.00"}]
[1.4,"亭廊镀锌格栅（含镀锌钢字体）","1.宽度：465mm~520mm；\n2.高度：外饰面高度2430mm，包含上下固定钢管；\n3.固定方式：焊接牢固，自行综合考虑；\n4.面饰要求：咖啡色氟碳漆，遍数自行深化考虑，含字体制作焊接，字体大小深化确认；\n5.包含：主材费、辅材费、半成品制作安装、成品制作安装、喷漆保护、成品保护及材料到场后的二次转运、检测、深化设计费等该工序所需的所有费用。\n6.计量方式：按双方确认的深化设计图以个计量。","个",{"v":12,"d":"12.00"},{"v":2400,"d":"2400.00"},{"v":28800,"d":"28800.00"}]
[1.5,"亭廊镀锌墙板格栅展示板（含展示板内容）","1.宽度：465mm~520mm；\n2.高度：外饰面高度2430mm，包含上下固定钢管；\n3.固定方式：焊接牢固，自行综合考虑；\n4.面饰要求：咖啡色氟碳漆，遍数自行深化考虑，含展示板安装，展示内容，深化确认，自行考虑在单价中；\n5.包含：主材费、辅材费、半成品制作安装、成品制作安装、喷漆保护、成品保护及材料到场后的二次转运、检测、深化设计费等该工序所需的所有费用。\n6.计量方式：按双方确认的深化设计图以个计量。","个",{"v":6,"d":"6.00"},{"v":2400,"d":"2400.00"},{"v":14400,"d":"14400.00"}]
[1.6,"旋转宣传牌","1.高度：外饰面高度2430mm，包含上下固定钢管；\n2.固定方式：焊接牢固，自行综合考虑；\n3.面饰要求：旋转镀锌钢板（带旋转功能）；单块钢板宽度大于210mm，高度大于297mm，双面装饰并喷漆，样式详效果图要求，深化设计等自行考虑在单价中；\n4.包含：主材费、辅材费、半成品制作安装、成品制作安装、喷漆保护、成品保护及材料到场后的二次转运、检测、深化设计费等该工序所需的所有费用。\n5.计量方式：按双方确认的深化设计图以个计量。","串",{"v":32,"d":"32.00"},{"v":5500,"d":"5500.00"},{"v":176000,"d":"176000.00"}]
[1.7,"成品镀锌矩管-钢梁","1、规格型号：综合；\n2.除锈要求：手工除锈或喷砂除锈，满足GB/T8923.1-2011中SA2.5级标准；\n3.底漆：一遍，铁红C53-31红丹醇酸防锈漆，涂层25~30um；\n3.中间漆：二遍，云铁醇酸防锈漆，厚度50~60um；\n4.面漆：二遍，C04-42醇酸调和漆（颜色详效果图）；厚度40~50um；\n5.其他：包含钢构件半成品处理、安装、面漆现场喷涂防护保护、防污染等施工内容；\n6.计量方式：成品构件安装后理论钢构重量计量结算；","t",{"v":1.612,"d":"1.61"},{"v":11000,"d":"11000.00"},{"v":17732,"d":"17732.00"}]
[1.8,"成品镀锌矩管-钢柱","1、规格型号：综合；\n2.除锈要求：手工除锈或喷砂除锈，满足GB/T8923.1-2011中SA2.5级标准；\n3.底漆：一遍，铁红C53-31红丹醇酸防锈漆，涂层25~30um；\n3.中间漆：二遍，云铁醇酸防锈漆，厚度50~60um；\n4.面漆：二遍，C04-42醇酸调和漆（颜色详效果图）；厚度40~50um；\n5.其他：包含钢构件半成品处理、安装、面漆现场喷涂防护保护、防污染等施工内容；\n6.计量方式：成品构件安装后理论钢构重量计量结算；","t",{"v":1.206,"d":"1.21"},{"v":11000,"d":"11000.00"},{"v":13266,"d":"13266.00"}]
[1.9,"2mm厚镀锌钢板包柱，面饰咖啡色氟碳漆","1.镀锌钢板厚度：2mm；\n2.面层：除锈后进行氟碳漆喷涂，包含除锈漆一般，氟碳漆底漆、面漆各两遍；\n3.固定方式：焊接牢固，衬管及加固件自行综合考虑，缝口处打磨处理；\n4.包含：主材费、辅材费、半成品制作安装、成品制作安装、喷漆保护、成品保护及材料到场后的二次转运、检测、深化设计费等该工序所需的所有费用。","m2",{"v":49,"d":"49.00"},{"v":240,"d":"240.00"},{"v":11760,"d":"11760.00"}]
[{"v":1.1,"d":"1.10"},"6+0.76PVB+6钢化夹胶玻璃天棚","1.玻璃品种：6+0.76PVB+6双面钢化夹胶玻璃天棚，防自爆；\n2.边框：15×30×2铝合金附框，M6自攻自钻螺钉固定；\n3.嵌缝要求：泡沫棒、密封胶详设计图纸自行考虑在单价中；\n4.安装部位：天棚","m2",{"v":44.4,"d":"44.40"},{"v":420,"d":"420.00"},{"v":18648,"d":"18648.00"}]
[1.11,"脚手架","1.脚手架类型：综合；\n2.搭设区域：廊架；\n3.搭设高度、超高要求：自行现场踏勘考虑；不应现场是否存在结构层还是面层为工作面变化调整费用\n","项",1,{"v":3000,"d":"3000.00"},{"v":3000,"d":"3000.00"}]
["二","车棚"]
[2.1,"切缝","1.切缝位置：混凝土地面；\n2.切缝厚度：综合；\n3.其他：加水抑尘切缝；","m",{"$f":"13.71*2","v":27.42},{"v":6,"d":"6.00"},{"$f":"F17*E17","v":164.52}]
[2.2,"破碎地面","1.破碎厚度：200mm以内；\n2.破碎方式：自行考虑；\n3.其他：包含破碎起挖，其中破碎时防溅射破碎，飞溅碎石采用挡板防护\n4.清理外运：投标人自行清运出场，弃置消纳费考虑在报价中","m2",24.54,{"v":20,"d":"20.00"},{"v":490.8,"d":"490.80"}]
[2.3,"基础土石方开挖","1.土石类别：各类土、石综合\n2.开挖类型：沟槽、基坑、场平综合\n3.开挖或开凿深度：按设计要求\n4.基底摊座要求：综合，由投标人综合考虑\n5.开挖方式、装土方式：综合，由投标人综合考虑\n6.土、石渣场内运输方式及运距：弃土包含上车费用，利旧回填土包含堆土防污染措施，投标人自行确定","m3",25.77,{"v":40,"d":"40.00"},{"v":1030.8,"d":"1030.80"}]
[2.4,"土石方回填","1.回填土质要求：回填后面层平整，严禁选用建筑垃圾土，淤泥、盐碱土，受重金属污染或其他有害成分的土壤；\n2.取土运距：场内，投标人自行考虑；\n3.回填厚度、位置：满足设计要求，回填位置包含沟槽、基坑、场平；\n4.其他：回填前土方筛细、拍挖铲细，筛料清运，营养土拌合，营养土由甲方提供；","m3",19,{"v":15,"d":"15.00"},{"v":285,"d":"285.00"}]
[2.5,"土石方、建渣外运弃置","1、弃置运距：投标人自行考虑\n2、弃置消纳费：投标人自行考虑；\n3、其他：装运上车点自行考虑，装运车辆轮胎场内自行清理、车厢防漏洒、车辆外观行车要求、夜间行驶等投标人自行考虑","m3",{"$f":"25.77-19","v":6.77},{"v":45,"d":"45.00"},304.65]
[2.6,"商品混凝土垫层 C15","1.混凝土强度等级及种类：C15商品砼\n2.砼运输方式、运距、砼泵送方式及浇筑:由投标人自行考虑在投标报价中\n","m3",1.45,{"v":560,"d":"560.00"},{"v":812,"d":"812.00"}]
[2.7,"商品混凝土基础 C30","1.部位：混凝土基础、条形基础、独立基础、筏板基础、构件基础；\n2.混凝土强度等级：C30商品砼，浇筑方式投标人自行考虑，包含在综合单价内，不再另计；","m3",{"$f":"0.61+4.5","v":5.11},{"v":620,"d":"620.00"},{"v":3168.2,"d":"3168.20"}]
[2.8,"商品混凝土基础梁 C30","1.部位：地梁\n2.混凝土强度等级：C30商品砼，浇筑方式投标人自行考虑，包含在综合单价内，不再另计；","m3",0.88,{"v":620,"d":"620.00"},{"v":545.6,"d":"545.60"}]
[2.9,"混凝土模板安拆","1.支模高度：综合\n2.模板和超高模板类型：木模、组合钢模板、竹胶合板等综合\n3.支架材料：钢管、竹、木支架综合，断面尺寸、材质、工艺等符合设计和施工验收规范要求                                                               4.材料一次性摊销、场内运输、转运费用已综合考虑在单价中","m2",{"$f":"3.58+12","v":15.58},{"v":60,"d":"60.00"},{"v":934.8,"d":"934.80"}]
[{"v":2.1,"d":"2.10"},"垫层模板","1.支模高度：综合\n2.模板和超高模板类型：木模、组合钢模板、竹胶合板等综合\n3.支架材料：钢管、竹、木支架综合，断面尺寸、材质、工艺等符合设计和施工验收规范要求                                                               4.材料一次性摊销场内运输、转运费用已综合考虑在单价中","m2",3.4,{"v":30,"d":"30.00"},{"v":102,"d":"102.00"}]
[2.11,"现浇构件钢筋制安型号综合","1.钢筋种类、规格：钢筋规格综合；\n2.钢筋连接方式：各种连接方式、套筒连接等投标人综合考虑在报价中；\n3.部位：台阶混凝土基础及台阶地梁；\n4.弧形构件钢筋增加的费用，由投标人综合考虑，进入综合单价中\n","t",0.344,{"v":5800,"d":"5800.00"},{"v":1995.2,"d":"1995.20"}]
[2.12,"预埋铁件","1.钢材种类.规格：综合\n2.铁件尺寸：综合\n3.其它：满足设计、现行技术、质量、施工验收规范要求及招标文件技术标准的要求\n","t",{"$f":"0.066*5","v":0.33},{"v":8500,"d":"8500.00"},{"$f":"F28*E28","v":{"v":2805,"d":"2805.00"}}]
[2.13,"成品镀锌矩管-钢梁","1、规格型号：材质为355B，规格型号综合；\n2.除锈要求：手工除锈或喷砂除锈，满足GB/T8923.1-2011中SA2.5级标准；\n3.底漆：一遍，铁红C53-31红丹醇酸防锈漆，涂层25~30um；\n3.中间漆：二遍，云铁醇酸防锈漆，厚度50~60um；\n4.面漆：二遍，深灰色氟碳漆；\n5.其他：包含钢构件半成品处理、安装、面漆现场喷涂防护保护、防污染等施工内容；\n6.计量方式：成品构件安装后理论钢构重量计量结算；","t",{"$f":"1.063+0.12","v":1.183},{"v":11000,"d":"11000.00"},{"v":13013,"d":"13013.00"}]
[2.14,"成品镀锌矩管-钢柱","1、规格型号：Q355B，200×150×8×8mm；\n2.除锈要求：手工除锈或喷砂除锈，满足GB/T8923.1-2011中SA2.5级标准；\n3.底漆：一遍，铁红C53-31红丹醇酸防锈漆，涂层25~30um；\n3.中间漆：二遍，云铁醇酸防锈漆，厚度50~60um；\n4.面漆：二遍，深灰色氟碳漆；\n5.其他：包含钢构件半成品处理、安装、面漆现场喷涂防护保护、防污染等施工内容；\n6.计量方式：成品构件安装后理论钢构重量计量结算；","t",0.818,{"v":11000,"d":"11000.00"},{"v":8998,"d":"8998.00"}]
[2.15,"20mm厚PC耐力板","1.顶篷面板规格：20mm厚PC耐力板，选型定样确认；\n2.固定方式：综合，包含玻璃脚垫，耐候胶密封；","m2",25.25,{"v":200,"d":"200.00"},{"v":5050,"d":"5050.00"}]
[2.16,"300mm高白色成品停车架","1.材料规格：300mm高白色成品停车架，选型定样确认；\n2.固定方式：M8膨胀螺栓固定；\n3.基础：300×200C20混凝土通长设置；\n4.基底场平：素土夯实,夯实系数大于0.94\n5.计量方式：白色成品停车架延长米计量结算","m",10.73,{"v":35,"d":"35.00"},375.55]
[2.17,"脚手架","1.脚手架类型：综合；\n2.搭设区域：车棚；\n3.搭设高度、超高要求：自行现场踏勘考虑；不应现场是否存在结构层还是面层为工作面变化调整费用\n","项",1,{"v":1600,"d":"1600.00"},{"v":1600,"d":"1600.00"}]
["三","箱变格栅"]
[3.1,"切缝","1、切缝位置：混凝土地面；\n2、切缝厚度：综合；\n3、其他：加水抑尘切缝；","m",{"$f":"60*0.35*4","v":84},{"v":6,"d":"6.00"},{"$f":"F35*E35","v":{"v":504,"d":"504.00"}}]
[3.2,"破碎地面","1、破碎厚度：200mm以内；\n2、破碎方式：自行考虑；\n3、其他：包含破碎起挖、清运，其中破碎时防溅射破碎，飞溅碎石采用挡板防护\n4、清理外运：投标人自行清运出场，弃置消纳费考虑在报价中","m2",{"$f":"60*0.35*0.35","v":7.35},{"v":20,"d":"20.00"},{"v":147,"d":"147.00"}]
[3.3,"基础土石方开挖","1.土石类别：各类土、石综合\n2.开挖类型：沟槽、基坑、场平综合\n3.开挖或开凿深度：按设计要求\n4.基底摊座要求：综合，由投标人综合考虑\n5.开挖方式、装土方式：综合，由投标人综合考虑\n6.土、石渣场内运输方式及运距：弃土包含上车费用，利旧回填土包含堆土防污染措施，投标人自行确定","m3",{"$f":"60*0.35*0.35*0.6","v":4.41},{"v":35,"d":"35.00"},154.35]
[3.4,"土石方、建渣外运弃置","1、弃置运距：投标人自行考虑\n2、弃置消纳费：投标人自行考虑；\n3、其他：装运上车点自行考虑，装运车辆轮胎场内自行清理、车厢防漏洒、车辆外观行车要求、夜间行驶等投标人自行考虑","m3",{"$f":"25.77-19","v":6.77},{"v":45,"d":"45.00"},304.65]
[3.5,"商品混凝土基础 C30","1.混凝土强度等级及种类：商品混凝土 C30 \n2.砼运输方式、运距、砼泵送方式及浇筑:由投标人自行考虑在投标报价中\n3.其它：满足设计、现行技术、质量、施工验收规范要求及招标文件技术标准的要求","m3",{"$f":"35*0.35*0.35*0.6","v":2.5725},{"v":620,"d":"620.00"},1594.95]
[3.6,"预埋铁件","1.钢材种类.规格：综合\n2.铁件尺寸：综合\n3.其它：满足设计、现行技术、质量、施工验收规范要求及招标文件技术标准的要求\n","t",{"$f":"0.066*30","v":1.98},{"v":8500,"d":"8500.00"},{"v":16830,"d":"16830.00"}]
[3.7,"80×80×5镀锌矩管立柱，面喷灰色氟碳漆","1、规格型号：Q355B，80×80×5mm；\n2.除锈要求：手工除锈或喷砂除锈，满足GB/T8923.1-2011中SA2.5级标准；\n3.底漆：一遍，铁红C53-31红丹醇酸防锈漆，涂层25~30um；\n3.中间漆：二遍，云铁醇酸防锈漆，厚度50~60um；\n4.面漆：二遍，深灰色氟碳漆；\n5.其他：包含钢构件半成品处理、安装、面漆现场喷涂防护保护、防污染等施工内容；\n6.计量方式：成品构件安装后理论钢构重量计量结算；","t",2.143,{"v":11000,"d":"11000.00"},{"v":23573,"d":"23573.00"}]
[3.8,"铝方通格栅","1.格栅管材型号：立管100×30×0.9灰色铝方通，变高50×30×0.9铝方通，横向拉结100×30×0.9灰色铝方通，含焊接短管，面管重叠造型；\n2.焊接要求：焊接牢固，焊接处需打磨刷漆无痕处理，采用AB胶粘结前需进行焊点加固；\n3.包含隐形门制作，门洞宽不小于900mm，高度不小于2000mm；\n4.其他：格栅造型详SD-2.01.1、SD-2.01.2，包含深化设计，选样定样，效果图出具及修改等费用，综合考虑在报价中","m2",400,{"v":500,"d":"500.00"},{"v":200000,"d":"200000.00"}]
[3.9,"304不锈钢LOGO标牌","1.LOGO要求：阴刻1mm深，面饰白色金属漆；\n2.字体要求：3mm304不锈钢字体，字体电镀白色；\n3.底板：610×370×3mm厚304不锈钢，电镀香槟金；\n4.其他：LOGO及字体内容想SD-2.01.2，包含深化设计，选样定样，效果图出具及修改，以及LOGO及字体不同区域样式调整的修改（字体小于8个字）等费用，综合考虑在报价中","组",30,{"v":550,"d":"550.00"},{"v":16500,"d":"16500.00"}]
[{"v":3.1,"d":"3.10"},"脚手架","1.脚手架类型：综合；\n2.搭设区域：廊架；\n3.搭设高度、超高要求：自行现场踏勘考虑；不应现场是否存在结构层还是面层为工作面变化调整费用\n","项",1,{"v":8000,"d":"8000.00"},{"v":8000,"d":"8000.00"}]
["合计",{"$nulls":5},{"$f":"SUM(G3:G44)","v":654079.07}]
["注：\n1.工程量计算规则：除已注明清单计量规则外，按四川省2020定额计量规则计算。\n2.投标人根据施工图、施工工艺、工序及国家最新现行规范、自行踏勘现场后综合考虑进行报价，结算时单价不作调整;\n3.全费用综合单价包含人工费、所有材料费（含辅材和周转材料费）、机械设备费、工具器具费、临时设施及措施费、小型机械转运材料降效费、大型机械进出场及场内转运费、单独使用发电机费、甲供材二次转运费、吊装费、规费、管理费、配合费、安全文明施工费、以及各种风险费、保险费、施工过程中办理的各种手续费、降水费、排水费、各种检测费、利润、税费等完成该工作所需的全部费用，结算时无论涨跌、工程量增减或其它任何风险因素，均不作调整。                                                                                                                            \n4.现场安全环保文明施工管理要求：（1）由公司统一发放印有“兴绿园林”字样和LOGO的安全帽和反光背心，班组按实名制领取，使用完后交回项目部，否则按采购费用扣款，其余参照合同附件中安全环保管理协议执行。（2）现场雾炮机由甲方提供；（3）防尘网由乙方自行提供，投标单位安排人员进行覆盖、回收、现场转移等；所有成品保护有承包人提供。\n5.该综合单价已包括垃圾外运、消纳费用，承包人自行综合在已有清单中考虑，未列入清单考虑在相应的每项报价中。                            \n6.施工中用电由投标人采用发电机发电，所用临时配电箱、用电线路、开关箱、机具等所有材料、设备及安装费用含在综合单价中。                                                                                                                                                                                                                                                                                                             \n7.本项目为拆建市政工程，工程量零星或部位位置零星，投标人不得以现场零星工程量为由调整全费用综合单价或以漏项清单处理提出索赔，定额规则仅适用计量，本项目是否为零星项目由投标人考虑在全费用综合单价中，结算不予以调整。  \n8.本次采用全费用单价报价形式，最高限价为654079.07元，施工单位所报价高于最高限价的为无效报价，采购人不予接受。同时在工程量清单中公布最高全费用单价限价，施工单位的全费用单价也不得超过最高全费用单价限价，否则，采购人将予以拒绝。\n9.开具的发票为增值税专票（税率为9%）。\n   \n                                                                                                   报价单位（公章）：\n                                                                                                   法人或委托代理人及电话：\n                                                                                                   时间：                                          "]